bitfinex/quotes_BTCUSD_20251116
["timestamp","ask_amount","ask_price","bid_price","bid_amount"]
[1763291541160,0.42636266,96270.0,96269.0,0.00135244]
[1763291542068,0.42736266,96270.0,96269.0,0.00135244]
[1763291543724,0.43701173,96270.0,96269.0,0.00135244]
[1763291545452,0.50414757,96270.0,96269.0,0.00135244]
[1763291546431,0.50314757,96270.0,96269.0,0.00135244]
[1763291546631,0.50414757,96270.0,96269.0,0.00135244]
[1763291546852,0.4582474,96270.0,96269.0,0.00135244]
[1763291547058,0.4592474,96270.0,96269.0,0.00135244]
[1763291549085,0.43701173,96270.0,96269.0,0.00135244]
[1763291549508,0.45924116,96270.0,96269.0,0.00135244]
[1763291552957,0.43701173,96270.0,96269.0,0.00135244]
[1763291553772,0.43601173,96270.0,96269.0,0.00135244]
[1763291553910,0.43701173,96270.0,96269.0,0.00135244]
[1763291554319,0.43700762,96270.0,96269.0,0.00135244]
[1763291554705,0.04341874,96269.0,96250.0,0.00245092]
[1763291554912,0.02811,96251.0,96250.0,0.00245092]
[1763291555107,0.39637767,96251.0,96250.0,0.00245092]
[1763291555371,0.37040392,96251.0,96250.0,0.00245092]
[1763291555595,0.37456624,96251.0,96250.0,0.00245092]
[1763291556428,0.35527232,96251.0,96250.0,0.00245092]
[1763291556831,0.03227232,96251.0,96250.0,0.00245092]
[1763291557399,0.10166481,96251.0,96250.0,0.00245092]
[1763291557972,0.1209509,96251.0,96250.0,0.00245092]
[1763291559362,0.1219509,96251.0,96250.0,0.00245092]
[1763291560518,0.10266481,96251.0,96250.0,0.00245092]
[1763291561098,0.10166481,96251.0,96250.0,0.00245092]
[1763291561294,0.12095696,96251.0,96250.0,0.00245092]
[1763291561959,0.07753822,96251.0,96250.0,0.00245092]
[1763291562950,0.05824607,96251.0,96250.0,0.05159092]
[1763291563158,0.03227232,96251.0,96250.0,0.05159092]
[1763291565642,0.03227232,96251.0,96250.0,0.05210533]
[1763291566729,0.01596232,96251.0,96250.0,0.05210533]
[1763291566886,0.00416232,96251.0,96250.0,0.05210533]
[1763291568405,0.01596232,96251.0,96250.0,0.05210533]
[1763291568629,0.00416232,96251.0,96250.0,0.05210533]
[1763291571191,0.02047232,96251.0,96250.0,0.05210533]
[1763291572118,0.00416232,96251.0,96250.0,0.05210533]
[1763291583100,0.00999999,96260.0,96250.0,0.00296533]
[1763291583304,0.00999999,96260.0,96259.0,0.04914]
[1763291583661,0.02566999,96260.0,96259.0,0.04914]
[1763291585065,0.02566999,96260.0,96250.0,0.00245092]
[1763291585066,0.00999999,96270.0,96269.0,0.04914]
[1763291585296,0.01217,96277.0,96269.0,0.04914]
[1763291585500,0.00999999,96270.0,96269.0,0.04914]
[1763291585931,0.02566999,96270.0,96269.0,0.04914]
[1763291586061,0.00999999,96270.0,96269.0,0.04914]
[1763291586726,0.02566999,96270.0,96269.0,0.04914]
[1763291587066,0.01217,96277.0,96276.0,0.04914]
[1763291587639,0.02784,96277.0,96276.0,0.04914]
[1763291588392,0.00999999,96260.0,96250.0,0.00245092]
[1763291588596,0.01217,96256.0,96255.0,0.04914]
[1763291589012,0.01217,96256.0,96255.0,0.04951912]
[1763291589854,0.02784,96256.0,96255.0,0.04951912]
[1763291599254,0.01217,96256.0,96255.0,0.04951912]
[1763291599424,0.35869,96264.0,96263.0,0.04914]
[1763291599425,0.03569,96264.0,96263.0,0.04914]
[1763291599800,0.05124,96264.0,96263.0,0.04914]
[1763291610463,0.00999999,96270.0,96269.0,0.04914]
[1763291610632,0.02446,96272.0,96260.0,0.00024385]
[1763291610843,0.02446,96272.0,96269.0,0.04914]
[1763291611043,0.01217,96270.0,96269.0,0.04914]
[1763291611265,0.02772,96270.0,96269.0,0.04914]
[1763291613651,0.01138,96273.0,96260.0,0.00024385]
[1763291613932,0.01138,96273.0,96272.0,0.04914]
[1763291614133,0.03073619,96273.0,96272.0,0.04914]
[1763291614569,0.05326619,96273.0,96272.0,0.04914]
[1763291615401,0.03391,96273.0,96272.0,0.04914]
[1763291615991,0.04942,96273.0,96272.0,0.04914]
[1763291616336,0.06878032,96273.0,96272.0,0.04914]
[1763291620128,0.04189032,96273.0,96272.0,0.04914]
[1763291620311,0.01217,96277.0,96265.0,0.09881783]
[1763291620467,0.01217,96277.0,96276.0,0.04914]
[1763291621065,0.02768,96277.0,96276.0,0.04914]
[1763291622056,0.01217,96277.0,96276.0,0.04914]
[1763291625831,0.02216999,96280.0,96266.0,0.01047946]
[1763291626018,0.01217,96280.0,96279.0,0.04914]
[1763291626219,0.0347,96280.0,96279.0,0.04914]
[1763291626423,0.05021,96280.0,96279.0,0.04914]
[1763291627125,0.05034553,96280.0,96279.0,0.04914]
[1763291627321,0.02781553,96280.0,96279.0,0.04914]
[1763291627544,0.01230553,96280.0,96279.0,0.04914]
[1763291629960,0.00013553,96280.0,96279.0,0.04914]
[1763291631716,0.01564553,96280.0,96279.0,0.04914]
[1763291639021,0.01564553,96280.0,96260.0,0.00024385]
[1763291639022,0.11446336,96280.0,96260.0,0.00024385]
[1763291639309,0.00999999,96230.0,96220.0,0.0004]
[1763291639514,0.02716,96223.0,96220.0,0.0004]
[1763291639951,0.01193,96228.0,96220.0,0.0004]
[1763291640159,0.01066,96223.0,96220.0,0.0004]
[1763291640571,0.01066,96223.0,96222.0,0.00054092]
[1763291641741,0.02682,96223.0,96222.0,0.00054092]
[1763291643586,0.01616,96223.0,96222.0,0.00054092]
[1763291643953,0.00999999,96190.0,96178.0,0.01062]
[1763291644177,0.01045146,96190.0,96178.0,0.03352]
[1763291644836,0.01045146,96190.0,96178.0,0.01062]
[1763291645595,0.01616,96182.0,96170.0,0.0004]
[1763291645980,0.01616,96182.0,96181.0,0.00233889]
[1763291646614,0.02332,96189.0,96181.0,0.00233889]
[1763291646825,0.01045146,96190.0,96181.0,0.01082]
[1763291647470,0.01045146,96190.0,96170.0,0.0004]
[1763291647471,0.04341874,96179.0,96170.0,0.0004]
[1763291647690,0.06839874,96171.0,96170.0,0.0004]
[1763291647902,0.08755062,96171.0,96170.0,0.0004]
[1763291648276,0.08755062,96171.0,96129.0,0.01062]
[1763291648495,0.09881783,96156.0,96130.0,0.09881783]
[1763291648941,0.35858,96155.0,96130.0,0.09881783]
[1763291649372,0.02332,96154.0,96130.0,0.09881783]
[1763291649592,0.02332,96154.0,96129.0,0.01062]
[1763291649819,0.0237712,96154.0,96130.0,0.09881783]
[1763291650029,0.0237712,96154.0,96129.0,0.01062]
[1763291650256,0.00999999,96140.0,96130.0,0.09881783]
[1763291650694,0.01226,96139.0,96130.0,0.09881783]
[1763291651125,0.0004512,96154.0,96130.0,0.09881783]
[1763291651126,0.02225999,96150.0,96139.0,0.01326]
[1763291651253,0.00999999,96150.0,96139.0,0.01326]
[1763291651493,0.0004512,96154.0,96149.0,0.01326]
[1763291653850,0.0004512,96154.0,96149.0,0.01426]
[1763291654359,0.0004512,96154.0,96153.0,0.00289779]
[1763291655524,0.0004512,96154.0,96153.0,0.00389779]
[1763291656348,0.0004512,96154.0,96153.0,0.00489779]
[1763291658233,0.0157312,96154.0,96153.0,0.00489779]
[1763291658763,0.0157312,96154.0,96153.0,0.00389779]
[1763291659328,0.0157312,96154.0,96153.0,0.00489779]
[1763291659788,0.0004512,96154.0,96153.0,0.00489779]
[1763291660018,0.0125112,96154.0,96153.0,0.00489779]
[1763291660221,0.0277912,96154.0,96153.0,0.00489779]
[1763291663637,0.0468595,96154.0,96153.0,0.00489779]
[1763291665519,0.0195195,96154.0,96153.0,0.00489779]
[1763291665740,0.00999999,96150.0,96118.0,0.0049]
[1763291665968,0.00999999,96150.0,96090.0,0.0005]
[1763291665969,0.02734,96101.0,96090.0,0.0005]
[1763291666174,0.03838,96100.0,96069.0,0.09275165]
[1763291666376,0.01907848,96099.0,96069.0,0.09275165]
[1763291666603,0.05423848,96099.0,96069.0,0.09275165]
[1763291666822,0.02703033,96098.0,96082.0,0.10402093]
[1763291667024,0.00999999,96090.0,96083.0,0.10402093]
[1763291667256,0.01907848,96089.0,96083.0,0.10402093]
[1763291667463,0.01907848,96088.0,96083.0,0.10402093]
[1763291667675,0.01907848,96087.0,96083.0,0.10402093]
[1763291667884,0.01907848,96086.0,96069.0,0.09275165]
[1763291668111,0.01907848,96085.0,96078.0,0.10402093]
[1763291668321,0.00999999,96090.0,96078.0,0.10402093]
[1763291668512,0.01912398,96089.0,96078.0,0.10402093]
[1763291668769,0.03309999,96090.0,96060.0,0.00625]
[1763291668770,0.01528,96070.0,96060.0,0.00625]
[1763291668973,0.13010647,96067.0,96012.0,0.10402093]
[1763291669174,0.07331335,96042.0,96030.0,0.00999999]
[1763291669389,0.0220519,96041.0,96020.0,0.00999999]
[1763291669595,0.0220519,96040.0,96024.0,0.07994644]
[1763291669809,0.0220519,96039.0,96020.0,0.00999999]
[1763291670020,0.09189179,96059.0,96031.0,0.04341874]
[1763291670223,0.00045036,96039.0,96031.0,0.04341874]
[1763291670426,0.00045036,96039.0,96038.0,0.005]
[1763291670630,3.6e-07,96039.0,96038.0,0.005]
[1763291671233,0.09189179,96060.0,96038.0,0.005]
[1763291671445,0.09189179,96073.0,96068.0,0.005]
[1763291671585,0.09189179,96077.0,96072.0,0.10902093]
[1763291671784,0.09189179,96079.0,96076.0,0.005]
[1763291672145,0.09189179,96085.0,96084.0,0.005]
[1763291672592,0.09189179,96089.0,96088.0,0.005]
[1763291673158,0.09189179,96094.0,96093.0,0.005]
[1763291673363,0.09189179,96095.0,96094.0,0.005]
[1763291673568,0.09189179,96096.0,96095.0,0.005]
[1763291673937,0.0191412,96096.0,96095.0,0.005]
[1763291674610,0.0344112,96096.0,96095.0,0.005]
[1763291674865,0.0344112,96096.0,96072.0,0.10402093]
[1763291675109,0.0191412,96095.0,96089.0,0.10402093]
[1763291675308,0.0191412,96094.0,96089.0,0.10402093]
[1763291675520,0.09188075,96091.0,96089.0,0.10402093]
[1763291675731,0.0191412,96090.0,96072.0,0.10402093]
[1763291675938,0.0191412,96089.0,96087.0,0.10402093]
[1763291676142,0.0191412,96088.0,96087.0,0.10402093]
[1763291676998,0.0191412,96088.0,96072.0,0.10402093]
[1763291677202,0.09190488,96086.0,96072.0,0.10402093]
[1763291677414,0.09190488,96084.0,96072.0,0.10402093]
[1763291677628,0.09190488,96085.0,96072.0,0.10402093]
[1763291677838,0.09190488,96084.0,96072.0,0.10402093]
[1763291678700,0.09190488,96079.0,96072.0,0.0195805]
[1763291679569,0.07349911,96075.0,96072.0,0.0195805]
[1763291679944,0.07349911,96073.0,96072.0,0.0195805]
[1763291680146,0.07349911,96074.0,96072.0,0.0195805]
[1763291680576,0.07349911,96073.0,96072.0,0.0195805]
[1763291680927,0.07349216,96073.0,96072.0,0.0195805]
[1763291681336,0.09190488,96084.0,96057.0,0.04341874]
[1763291681559,0.09190488,96085.0,96082.0,0.10402093]
[1763291681796,0.09190488,96092.0,96084.0,0.10402093]
[1763291682034,0.04118412,96091.0,96084.0,0.10402093]
[1763291682235,0.04118412,96090.0,96084.0,0.10402093]
[1763291682456,0.04118412,96089.0,96087.0,0.00179047]
[1763291682662,0.04118412,96088.0,96084.0,0.10402093]
[1763291682879,0.04118412,96087.0,96084.0,0.10402093]
[1763291683090,0.04118412,96086.0,96084.0,0.10402093]
[1763291683294,0.02204605,96085.0,96084.0,0.10402093]
[1763291683501,0.02204605,96085.0,96057.0,0.04341874]
[1763291683720,0.02204605,96084.0,96080.0,0.10402093]
[1763291683983,0.07351576,96082.0,96080.0,0.04772725]
[1763291684188,0.09556181,96081.0,96080.0,0.04772725]
[1763291684607,0.02204605,96081.0,96056.0,0.323]
[1763291684823,0.02204605,96080.0,96077.0,0.10402093]
[1763291685060,0.02204605,96080.0,96040.0,0.10402093]
[1763291685061,0.33827,96078.0,96040.0,0.10402093]
[1763291685277,0.07353418,96062.0,96040.0,0.10402093]
[1763291685511,0.07353418,96057.0,96040.0,0.10402093]
[1763291685717,0.07353418,96055.0,96040.0,0.10402093]
[1763291685919,0.02204605,96054.0,96040.0,0.10402093]
[1763291686122,0.02204605,96053.0,96040.0,0.10402093]
[1763291686331,0.02204605,96052.0,96040.0,0.10402093]
[1763291686536,0.02204605,96051.0,96040.0,0.10402093]
[1763291686747,0.02204605,96050.0,96040.0,0.10402093]
[1763291686972,0.02204605,96049.0,96040.0,0.10402093]
[1763291687187,0.02204605,96048.0,96040.0,0.10402093]
[1763291687392,0.02204605,96047.0,96040.0,0.10402093]
[1763291687599,0.02204605,96046.0,96040.0,0.10402093]
[1763291687860,0.02204605,96045.0,96040.0,0.10402093]
[1763291688097,0.02204605,96044.0,96040.0,0.10402093]
[1763291688301,0.02204605,96043.0,96018.0,0.10402093]
[1763291688514,0.07353418,96039.0,96021.0,0.10402093]
[1763291688725,0.00999999,96030.0,96001.0,0.10402093]
[1763291688928,0.07353418,96022.0,96001.0,0.10402093]
[1763291689155,0.02204605,96021.0,96001.0,0.10402093]
[1763291689355,0.02204605,96020.0,96001.0,0.10402093]
[1763291689559,0.02204605,96019.0,96001.0,0.10402093]
[1763291689765,0.02204605,96018.0,96001.0,0.10402093]
[1763291689972,0.02204605,96017.0,96001.0,0.10402093]
[1763291690175,0.02204605,96016.0,96001.0,0.10402093]
[1763291690505,0.02204605,96015.0,96001.0,0.10402093]
[1763291690734,0.02204605,96014.0,96001.0,0.10402093]
[1763291690909,0.00013495,96018.0,96001.0,0.10402093]
[1763291690910,0.02204605,96013.0,96001.0,0.10402093]
[1763291691070,0.02204605,96012.0,96001.0,0.10402093]
[1763291691269,0.02204605,96011.0,96001.0,0.10402093]
[1763291691496,0.02204605,96010.0,96001.0,0.10402093]
[1763291691693,0.02204605,96009.0,96001.0,0.10402093]
[1763291691904,0.02204605,96008.0,96001.0,0.10402093]
[1763291692060,0.02204605,96007.0,96001.0,0.10402093]
[1763291692261,0.02204605,96006.0,96001.0,0.10402093]
[1763291692463,0.02204605,96005.0,96001.0,0.10402093]
[1763291692664,0.02204605,96004.0,96001.0,0.10402093]
[1763291692974,0.07353418,96016.0,96001.0,0.10402093]
[1763291692975,0.02204605,96003.0,96001.0,0.10402093]
[1763291693180,0.02204605,96002.0,96001.0,0.08602093]
[1763291693767,0.02204605,96002.0,96001.0,0.090147]
[1763291693977,0.02204605,96002.0,96001.0,0.00412607]
[1763291694204,0.02204605,96002.0,96001.0,0.108147]
[1763291695240,0.04120518,96002.0,96001.0,0.10402093]
[1763291695472,0.02204605,96002.0,96001.0,0.10402093]
[1763291695682,0.02404605,96002.0,96001.0,0.10402093]
[1763291695859,0.02304605,96002.0,96001.0,0.10402093]
[1763291696661,0.02204605,96002.0,96001.0,0.10402093]
[1763291697059,0.02404605,96002.0,96001.0,0.10402093]
[1763291697295,0.02304605,96002.0,96001.0,0.10402093]
[1763291697523,0.02204605,96002.0,96001.0,0.10402093]
[1763291697729,0.02404605,96002.0,96001.0,0.10402093]
[1763291698580,0.002,96002.0,96001.0,0.10402093]
[1763291699024,0.00999999,96060.0,96020.0,0.00999999]
[1763291699248,0.01915865,96059.0,96032.0,0.10402093]
[1763291699459,0.00999999,96050.0,96033.0,0.10402093]
[1763291699661,0.01915865,96049.0,96033.0,0.10402093]
[1763291699887,0.01915865,96048.0,96017.0,0.10402093]
[1763291700091,0.01915865,96047.0,96032.0,0.10402093]
[1763291700299,0.00999999,96040.0,96017.0,0.10402093]
[1763291700575,0.01147,96053.0,96004.0,0.07746544]
[1763291700576,0.00999999,96020.0,96004.0,0.07746544]
[1763291700790,0.00999999,96020.0,96001.0,0.10402093]
[1763291700992,0.00999999,96030.0,96016.0,0.10402093]
[1763291701196,0.001,96049.0,96016.0,0.10402093]
[1763291701430,0.01914996,96048.0,96031.0,0.10402093]
[1763291701631,0.01914996,96047.0,96031.0,0.10402093]
[1763291702079,0.01914996,96047.0,96046.0,0.10402093]
[1763291702290,0.00013553,96048.0,96046.0,0.10402093]
[1763291703095,0.00999999,96090.0,96060.0,0.00999999]
[1763291703307,0.0191626,96089.0,96085.0,0.10402093]
[1763291703513,0.0191626,96088.0,96085.0,0.10402093]
[1763291703692,0.00013553,96090.0,96085.0,0.10402093]
[1763291704086,0.00013553,96090.0,96070.0,0.10402093]
[1763291704368,0.00313553,96090.0,96085.0,0.10402093]
[1763291704572,0.00013553,96090.0,96070.0,0.10402093]
[1763291704760,0.001,96088.0,96070.0,0.10402093]
[1763291704987,0.01917064,96087.0,96070.0,0.10402093]
[1763291706034,0.00113553,96090.0,96070.0,0.10402093]
[1763291706259,0.0191722,96089.0,96070.0,0.10402093]
[1763291706627,0.0191722,96089.0,96086.0,0.10402093]
[1763291706794,0.001,96088.0,96086.0,0.10402093]
[1763291706999,0.001,96087.0,96086.0,0.10402093]
[1763291707428,0.001,96089.0,96086.0,0.10402093]
[1763291708190,0.001,96088.0,96086.0,0.10402093]
[1763291708389,0.00013553,96090.0,96087.0,0.323]
[1763291708567,0.00999999,96120.0,96090.0,0.00999999]
[1763291708899,0.00013548,96120.0,96113.0,0.10402093]
[1763291710351,0.00113548,96120.0,96113.0,0.10402093]
[1763291710556,0.00013548,96120.0,96113.0,0.10402093]
[1763291710795,0.00213548,96120.0,96113.0,0.10402093]
[1763291711157,0.00013548,96120.0,96113.0,0.10402093]
[1763291711362,0.00113548,96120.0,96113.0,0.10402093]
[1763291711539,0.00213548,96120.0,96113.0,0.10402093]
[1763291712666,0.00013548,96120.0,96113.0,0.10402093]
[1763291712867,0.00113548,96120.0,96113.0,0.10402093]
[1763291713247,0.00213548,96120.0,96113.0,0.10402093]
[1763291713481,0.00113548,96120.0,96113.0,0.10402093]
[1763291713680,0.00013548,96120.0,96113.0,0.10402093]
[1763291716071,0.00999999,96150.0,96113.0,0.10402093]
[1763291716281,0.01045149,96150.0,96143.0,0.10402093]
[1763291717102,0.0004515,96150.0,96143.0,0.10402093]
[1763291718812,0.0014515,96150.0,96143.0,0.10402093]
[1763291719016,0.0004515,96150.0,96128.0,0.10402093]
[1763291719466,0.0014515,96150.0,96143.0,0.10402093]
[1763291720293,0.0004515,96150.0,96143.0,0.10402093]
[1763291720503,0.0014515,96150.0,96143.0,0.10402093]
[1763291720727,0.0014515,96150.0,96127.0,0.07746776]
[1763291720728,0.0024515,96150.0,96127.0,0.07746776]
[1763291720949,0.0014515,96150.0,96128.0,0.04341874]
[1763291721157,0.0024515,96150.0,96121.0,0.04341874]
[1763291721795,0.0024515,96150.0,96149.0,0.10402093]
[1763291722019,0.0014515,96150.0,96149.0,0.10402093]
[1763291722243,0.0024515,96150.0,96149.0,0.10402093]
[1763291722452,0.0014515,96150.0,96149.0,0.10402093]
[1763291722658,0.0004515,96150.0,96149.0,0.10402093]
[1763291722861,0.0024515,96150.0,96149.0,0.10402093]
[1763291723070,0.0024515,96150.0,96134.0,0.10402093]
[1763291723275,0.0004515,96150.0,96134.0,0.10402093]
[1763291723481,0.0014515,96150.0,96149.0,0.10402093]
[1763291723683,0.0024515,96150.0,96149.0,0.10402093]
[1763291724120,0.0014515,96150.0,96134.0,0.10402093]
[1763291724328,0.0014515,96150.0,96149.0,0.10402093]
[1763291724556,0.0024515,96150.0,96149.0,0.10402093]
[1763291725442,0.0024515,96150.0,96134.0,0.10402093]
[1763291725625,0.0014515,96150.0,96134.0,0.10402093]
[1763291725909,0.0024515,96150.0,96134.0,0.10402093]
[1763291726126,0.0024515,96150.0,96149.0,0.10402093]
[1763291726341,0.0004515,96150.0,96149.0,0.10402093]
[1763291726772,0.0024515,96150.0,96149.0,0.10402093]
[1763291726983,0.0014515,96150.0,96149.0,0.10402093]
[1763291727200,0.0004515,96150.0,96149.0,0.10402093]
[1763291727499,0.0014515,96150.0,96149.0,0.10402093]
[1763291727701,0.0014515,96150.0,96134.0,0.10402093]
[1763291727930,0.01145149,96150.0,96135.0,0.10402093]
[1763291728314,0.01245149,96150.0,96135.0,0.10402093]
[1763291728538,0.01145149,96150.0,96135.0,0.10402093]
[1763291728725,0.01045149,96150.0,96135.0,0.10402093]
[1763291728924,0.01245149,96150.0,96135.0,0.10402093]
[1763291729229,0.01145149,96150.0,96135.0,0.10402093]
[1763291729933,0.01245149,96150.0,96135.0,0.10402093]
[1763291730140,0.01245149,96150.0,96133.0,0.07408864]
[1763291730350,0.01245149,96150.0,96136.0,0.10402093]
[1763291731403,0.01245149,96150.0,96139.0,0.07408864]
[1763291731616,0.01045149,96150.0,96139.0,0.07408864]
[1763291732047,0.01245149,96150.0,96139.0,0.07408864]
[1763291732278,0.01145149,96150.0,96143.0,0.07408864]
[1763291732486,0.01145149,96150.0,96136.0,0.10402093]
[1763291732487,0.01921585,96149.0,96142.0,0.07408864]
[1763291733306,0.01921585,96149.0,96146.0,0.07408864]
[1763291733553,0.01921585,96148.0,96146.0,0.07408864]
[1763291733788,0.01921585,96147.0,96146.0,0.07408864]
[1763291734217,0.01921585,96147.0,96137.0,0.0926108]
[1763291734435,0.01921585,96146.0,96137.0,0.0926108]
[1763291734645,0.01921585,96145.0,96137.0,0.0926108]
[1763291734895,0.01921585,96144.0,96137.0,0.0926108]
[1763291735143,0.001,96149.0,96137.0,0.0926108]
[1763291735370,0.01145149,96150.0,96137.0,0.0926108]
[1763291735371,0.01924418,96148.0,96137.0,0.0926108]
[1763291735597,0.01924418,96147.0,96139.0,0.0926108]
[1763291735827,0.01924418,96146.0,96139.0,0.0926108]
[1763291736057,0.01924418,96145.0,96139.0,0.0926108]
[1763291736268,0.01924418,96144.0,96139.0,0.0926108]
[1763291736438,0.01924418,96143.0,96142.0,0.0926108]
[1763291737095,0.01924418,96143.0,96140.0,0.0926108]
[1763291737324,0.00017898,96142.0,96136.0,0.10402093]
[1763291737509,0.001,96148.0,96136.0,0.10402093]
[1763291737718,0.001,96148.0,96143.0,0.09336356]
[1763291737938,0.01045149,96150.0,96144.0,0.09336356]
[1763291738165,0.01045149,96150.0,96141.0,0.09336356]
[1763291738394,0.01045149,96150.0,96144.0,0.09336356]
[1763291739113,0.01245149,96150.0,96144.0,0.09336356]
[1763291739314,0.0024515,96150.0,96145.0,0.09336356]
[1763291740312,0.0014515,96150.0,96146.0,0.09336356]
[1763291741077,0.0004515,96150.0,96144.0,0.09336356]
[1763291741304,0.0014515,96150.0,96146.0,0.09336356]
[1763291741724,0.0004515,96150.0,96146.0,0.09336356]
[1763291741949,0.01605,96147.0,96146.0,0.09336356]
[1763291742163,0.00999999,96140.0,96127.0,0.13008648]
[1763291742382,0.00999999,96110.0,96098.0,0.13008648]
[1763291742811,0.00999999,96110.0,96097.0,0.00865]
[1763291743025,0.00999999,96110.0,96099.0,0.02283]
[1763291743669,0.00999999,96110.0,96099.0,0.02296548]
[1763291744097,0.01099999,96110.0,96099.0,0.02296548]
[1763291745198,0.00999999,96110.0,96099.0,0.02296548]
[1763291745585,0.01199999,96110.0,96099.0,0.02296548]
[1763291745789,0.01099999,96110.0,96099.0,0.02296548]
[1763291746157,0.01199999,96110.0,96099.0,0.02296548]
[1763291746596,0.01099999,96110.0,96099.0,0.00013548]
[1763291746805,0.01199999,96110.0,96099.0,0.00013548]
[1763291747668,0.01099999,96110.0,96099.0,0.00013548]
[1763291747885,0.01199999,96110.0,96099.0,0.02296548]
[1763291748291,0.01099999,96110.0,96099.0,0.02296548]
[1763291748698,0.01199999,96110.0,96099.0,0.02296548]
[1763291748936,0.01099999,96110.0,96099.0,0.02296548]
[1763291749140,0.01199999,96110.0,96099.0,0.02296548]
[1763291749353,0.01924936,96109.0,96099.0,0.02296548]
[1763291749555,0.01924936,96108.0,96099.0,0.02296548]
[1763291749735,0.01924936,96107.0,96099.0,0.02296548]
[1763291749947,0.01924936,96106.0,96099.0,0.02296548]
[1763291750169,0.01199999,96110.0,96099.0,0.02296548]
[1763291750389,0.01924442,96109.0,96099.0,0.02296548]
[1763291750601,0.02024442,96109.0,96099.0,0.02296548]
[1763291750821,0.01924442,96108.0,96099.0,0.02296548]
[1763291751539,0.01924442,96107.0,96099.0,0.02296548]
[1763291753086,0.02024442,96107.0,96099.0,0.02296548]
[1763291753297,0.001,96107.0,96099.0,0.02296548]
[1763291753767,0.002,96107.0,96099.0,0.02296548]
[1763291755342,0.002,96107.0,96100.0,0.10402093]
[1763291755852,0.002,96107.0,96101.0,0.02283]
[1763291756571,0.001,96107.0,96101.0,0.02283]
[1763291756802,0.002,96107.0,96101.0,0.02283]
[1763291757281,0.001,96107.0,96101.0,0.02283]
[1763291757796,0.001,96107.0,96099.0,0.00013548]
[1763291758054,0.00999999,96110.0,96099.0,0.00013548]
[1763291758264,0.001,96107.0,96099.0,0.00013548]
[1763291758863,0.002,96107.0,96099.0,0.00013548]
[1763291759089,0.001,96107.0,96099.0,0.00013548]
[1763291759915,0.002,96107.0,96099.0,0.00013548]
[1763291763410,0.002,96107.0,96099.0,0.02474548]
[1763291764258,0.002,96107.0,96101.0,0.10402093]
[1763291764701,0.002,96107.0,96102.0,0.02461]
[1763291765333,0.001,96107.0,96102.0,0.02461]
[1763291765769,0.00999999,96120.0,96111.0,0.01632]
[1763291765980,0.00999999,96120.0,96119.0,0.02465]
[1763291767496,0.01099999,96120.0,96119.0,0.02465]
[1763291768354,0.01199999,96120.0,96119.0,0.02465]
[1763291768565,0.00999999,96120.0,96119.0,0.02465]
[1763291768981,0.01199999,96120.0,96119.0,0.02465]
[1763291769782,0.01199999,96120.0,96119.0,0.04926]
[1763291770432,0.01199999,96120.0,96119.0,0.02465]
[1763291770627,0.02714999,96120.0,96099.0,0.00013548]
[1763291770833,0.00999999,96110.0,96099.0,0.00013548]
[1763291771909,0.01099999,96110.0,96099.0,0.00013548]
[1763291772900,0.01199999,96110.0,96099.0,0.00013548]
[1763291773245,0.01099999,96110.0,96099.0,0.02474548]
[1763291773378,0.01099999,96110.0,96109.0,0.00833]
[1763291773584,0.01199999,96110.0,96109.0,0.00833]
[1763291773805,0.01199999,96110.0,96108.0,0.00833]
[1763291774123,0.002,96110.0,96109.0,0.01632]
[1763291774539,0.001,96110.0,96109.0,0.01632]
[1763291774948,0.02600942,96119.0,96109.0,0.01632]
[1763291775187,0.001,96110.0,96109.0,0.01632]
[1763291775361,0.002,96110.0,96109.0,0.01632]
[1763291775818,0.001,96110.0,96109.0,0.01632]
[1763291776026,0.02600942,96119.0,96109.0,0.01632]
[1763291776234,0.001,96119.0,96118.0,0.01566]
[1763291776621,0.00999999,96130.0,96119.0,0.00259023]
[1763291776860,0.01932377,96129.0,96119.0,0.00259023]
[1763291777063,0.01932377,96129.0,96108.0,0.00833]
[1763291777064,0.01932377,96129.0,96111.0,0.10402093]
[1763291778048,0.001,96119.0,96111.0,0.10402093]
[1763291778495,0.03033473,96130.0,96120.0,0.00516]
[1763291778704,0.02131802,96129.0,96120.0,0.00516]
[1763291778899,0.01931802,96128.0,96120.0,0.00516]
[1763291779540,0.00999999,96130.0,96120.0,0.00516]
[1763291779741,0.01931833,96129.0,96120.0,0.00516]
[1763291779950,0.01931833,96129.0,96111.0,0.10402093]
[1763291779951,0.01099999,96130.0,96129.0,0.00516]
[1763291780155,0.01205,96128.0,96112.0,0.10402093]
[1763291781308,0.01405,96128.0,96112.0,0.10402093]
[1763291781707,0.01305,96128.0,96112.0,0.10402093]
[1763291782135,0.01405,96128.0,96112.0,0.10402093]
[1763291782534,0.01405,96128.0,96112.0,0.10918093]
[1763291782736,0.002,96128.0,96113.0,0.00516]
[1763291783719,0.001,96128.0,96113.0,0.00516]
[1763291784399,0.002,96128.0,96113.0,0.00516]
[1763291788483,0.00999999,96120.0,96108.0,0.00833]
[1763291788686,0.00999999,96120.0,96108.0,0.00846548]
[1763291789313,0.00999999,96120.0,96109.0,0.00516]
[1763291790190,0.01099999,96120.0,96109.0,0.00516]
[1763291790851,0.01199999,96120.0,96109.0,0.00516]
[1763291790984,0.01199999,96120.0,96108.0,0.00846548]
[1763291791188,0.01299999,96120.0,96108.0,0.00846548]
[1763291791586,0.01199999,96120.0,96108.0,0.00846548]
[1763291792154,0.01299999,96120.0,96108.0,0.00846548]
[1763291792588,0.01199999,96120.0,96108.0,0.00846548]
[1763291792790,0.01299999,96120.0,96108.0,0.00846548]
[1763291792992,0.01099999,96120.0,96108.0,0.00846548]
[1763291793406,0.01199999,96120.0,96108.0,0.00846548]
[1763291793997,0.02746,96109.0,96108.0,0.00013548]
[1763291795670,0.01148,96109.0,96108.0,0.00013548]
[1763291795842,0.02846,96109.0,96108.0,0.00013548]
[1763291796277,0.02946,96109.0,96108.0,0.00013548]
[1763291797670,0.01348,96109.0,96108.0,0.00013548]
[1763291801004,0.002,96109.0,96108.0,0.00013548]
[1763291821194,0.001,96109.0,96108.0,0.00013548]
[1763291821409,0.002,96109.0,96108.0,0.00013548]
[1763291821611,0.001,96109.0,96108.0,0.00013548]
[1763291821811,0.00999999,96130.0,96117.0,0.00516]
[1763291822035,0.00999999,96130.0,96129.0,0.00516]
[1763291822251,0.00999999,96140.0,96129.0,0.00516]
[1763291822573,0.00999999,96140.0,96130.0,0.00516]
[1763291823126,0.00999999,96140.0,96130.0,0.01032]
[1763291823552,0.01099999,96140.0,96130.0,0.01032]
[1763291823753,0.01090968,96140.0,96130.0,0.01032]
[1763291824230,0.01090968,96140.0,96139.0,0.00516]
[1763291824759,0.01606968,96140.0,96139.0,0.00516]
[1763291824967,0.01706968,96140.0,96139.0,0.00516]